lending/lending_fUSD_20240809
["ID","MTS","AMOUNT","RATE_DAILY","PERIOD"]
[334488919,1723161665453,248.59,0.00011,2]
[334488921,1723161729468,1223.15336845,0.00011,2]
[334488922,1723161735944,7577.08167818,0.00011,2]
[334488925,1723161793813,1050.16898216,0.00011,2]
[334488927,1723161809733,2565.2303361,0.00011,2]
[334488929,1723161810764,7577.08167818,0.00011,2]
[334488930,1723161815255,20386.76664301,0.00011,2]
[334488931,1723161824252,796.0177577,0.00011,2]
[334488932,1723161826045,3069.9855493,0.00011,2]
[334488937,1723161907685,325.8910955,0.00010945,2]
[334488938,1723161912089,2565.2303361,0.00011,2]
[334488940,1723161919772,3229.1131873,0.00011,2]
[334488941,1723161920064,3069.9855493,0.00011,2]
[334488942,1723161920269,6607.86144721,0.00011,2]
[334488944,1723162019592,2565.2303361,0.00011,2]
[334488945,1723162030064,752.3993561,0.00011,2]
[334488956,1723162121604,2561.82347562,0.00011,2]
[334488970,1723162232013,-705.37329515,0.00013066,2]
[334488971,1723162232022,-7976.44248763,0.00013873,2]
[334488972,1723162232118,-1603.49340754,0.00013873,2]
[334488973,1723162232174,-3900.0,0.00013873,2]
[334488974,1723162232185,-1680.21209364,0.00013873,2]
[334488975,1723162232228,-648.12882621,0.00013873,2]
[334488994,1723162237705,-1004.23735907,0.00013873,2]
[334488995,1723162237758,-1041.16462801,0.00013873,2]
[334488996,1723162237768,-154.42,0.00013973,2]
[334488997,1723162237777,-3225.10105199,0.0002012,2]
[334488998,1723162237865,-2120.65324207,0.0002012,2]
[334488999,1723162237972,-3597.56620416,0.0002012,2]
[334489000,1723162237983,-5408.20141486,0.0002012,2]
[334489001,1723162237994,-47.99550288,0.0002012,2]
[334489002,1723162238003,-194.54,0.00020632,2]
[334489003,1723162238012,-90.44654114,0.00020899,2]
[334489005,1723162238026,-5500.0,0.00020899,2]
[334489184,1723162239757,-576.99,0.00020899,2]
[334489186,1723162239770,-278.36352031,0.00020899,2]
[334489334,1723162241476,-611.93834166,0.00020899,2]
[334489335,1723162241529,-500.0,0.00020899,2]
[334489336,1723162241584,-456.75125999,0.00020899,2]
[334489337,1723162241595,-1023.25,0.00020899,2]
[334489338,1723162241639,-12288.6189369,0.00020899,2]
[334489339,1723162241648,-93.9250631,0.00020899,2]
[334489451,1723162245892,-540.8749369,0.00020899,2]
[334489452,1723162245902,-473.9949137,0.00020899,2]
[334489453,1723162245913,-25.9950863,0.00020899,2]
[334489454,1723162245923,-800.25,0.00022423,2]
[334489455,1723162245932,-752.24805759,0.00022488,2]
[334489456,1723162245944,-705.775,0.00022488,2]
[334489457,1723162245954,-1819.32821834,0.00022488,2]
[334489458,1723162245999,-550.66872407,0.00022488,2]
[334489459,1723162246008,-250.0,0.00022505,2]
[334489460,1723162246018,-217.0,0.0002251,2]
[334489461,1723162246028,-11288.93127592,0.00022511,2]
[334489462,1723162246043,-302.0,0.00022511,2]
[334489483,1723162459036,400.48,0.000249,31]
[334489496,1723163114826,321.20274,0.00025,60]
[334489540,1723163431826,-550.0,0.00013,2]
[334489542,1723163431835,-574.89094702,0.00013333,2]
[334489544,1723163431845,-164.64,0.00013973,2]
[334489546,1723163431854,-46.46905297,0.000149,2]
[334489547,1723163431874,-271.55274703,0.000149,2]
[334489548,1723163431883,-178.44725297,0.00015,2]
[334489570,1723163437897,-421.55274703,0.00015,2]
[334489571,1723163437906,-650.0,0.00017,2]
[334489572,1723163437916,-155.0,0.00019045,2]
[334489573,1723163437926,-127.40179757,0.00019319,2]
[334489574,1723163438010,-261.94911307,0.00019319,2]
[334489575,1723163438019,-357.80913693,0.00019452,2]
[334489576,1723163438183,-223.76086307,0.00019452,2]
[334489578,1723163438192,-300.0,0.0002,7]
[334489580,1723163438203,-184.81,0.00020511,2]
[334489582,1723163438212,-339.43050856,0.00021,4]
[334489584,1723163438221,-150.66,0.00022161,2]
[334489586,1723163438231,-1741.0,0.000222,3]
[334489588,1723163438240,-3261.85672837,0.0002228,2]
[334489591,1723163439858,-923.08443828,0.0002228,2]
[334489592,1723163439870,-1352.74328221,0.0002228,2]
[334489593,1723163439882,-7229.23789044,0.0002228,2]
[334489594,1723163439916,-251.8076607,0.0002228,2]
[334489595,1723163439926,-250.0,0.00022287,2]
[334489596,1723163439936,-780.38,0.00022345,2]
[334489597,1723163439945,-4008.34988723,0.00022346,2]
[334489635,1723163440648,-261.82341059,0.00022346,2]
[334489637,1723163440661,-867.84487322,0.00022346,2]
[334489679,1723163441184,-1298.20012132,0.00022346,2]
[334489680,1723163441196,-317.4542438,0.00022346,2]
[334489681,1723163441209,-3005.97746384,0.00022346,2]
[334489682,1723163441220,-778.29299096,0.00022356,2]
[334489683,1723163441231,-221.70700904,0.00022356,2]
[334489684,1723163441240,-169.35,0.00022356,2]
[334489685,1723163441249,-3653.77,0.00022356,2]
[334489686,1723163441258,-177.89,0.00022435,2]
[334489687,1723163441267,-2000.0,0.00022456,2]
[334489688,1723163441277,-1296.09,0.00022485,2]
[334489689,1723163441286,-767.84,0.00022511,2]
[334489690,1723163441295,-2482.965,0.00022511,2]
[334489691,1723163441304,-250.0,0.00022521,2]
[334489692,1723163441314,-181.62,0.00022544,2]
[334489693,1723163441323,-831.75,0.00022575,2]
[334489694,1723163441332,-184.81,0.00022775,2]
[334489695,1723163441342,-200.0,0.00023,2]
[334489696,1723163441351,-1000.0,0.00023011,2]
[334489697,1723163441361,-161.65,0.00023095,2]
[334489698,1723163441370,-161.65,0.00023133,2]
[334489699,1723163441379,-161.65,0.00023172,2]
[334489700,1723163441388,-161.65,0.0002321,2]
[334489701,1723163441397,-181.86607884,0.00023383,2]
[334489702,1723163441411,-1100.0,0.00024,8]
[334489703,1723163441420,-4354.93707154,0.000243,14]
[334489704,1723163441430,-150.0,0.00024336,2]
[334489705,1723163441439,-150.44,0.00024339,2]
[334489706,1723163441448,-150.0,0.00024339,2]
[334489707,1723163441457,-150.0,0.00024339,2]
[334489708,1723163441467,-150.0,0.00024339,2]
[334489709,1723163441476,-150.0,0.00024339,2]
[334489710,1723163441486,-150.0,0.00024339,2]
[334489711,1723163441496,-150.0,0.00024339,2]
[334489712,1723163441506,-150.0,0.00024339,2]
[334489713,1723163441515,-1000.0,0.00024369,2]
[334489714,1723163441524,-2350.91928372,0.00024389,2]
[334489715,1723163441534,-453.87216,0.00024389,2]
[334489716,1723163441543,-584.23,0.00024389,2]
[334489717,1723163441552,-2350.91928364,0.0002439,2]
[334489718,1723163441561,-453.87216,0.00024391,2]
[334489719,1723163441570,-2350.91928364,0.00024391,2]
[334489720,1723163441580,-453.87216,0.00024392,2]
[334489721,1723163441589,-2350.91928364,0.00024393,2]
[334489722,1723163441598,-453.87216,0.00024394,2]
[334489723,1723163441608,-2350.91928364,0.00024394,2]
[334489724,1723163441620,-2350.91928364,0.00024395,2]
[334489725,1723163441629,-453.87216,0.00024395,2]
[334489726,1723163441638,-2350.91928364,0.00024396,2]
[334489727,1723163441648,-453.87216,0.00024397,2]
[334489728,1723163441659,-2350.91928364,0.00024398,2]
[334489729,1723163441668,-453.87216,0.00024398,2]
[334489730,1723163441677,-2350.91928364,0.00024399,2]
[334489731,1723163441687,-1000.0,0.00024399,2]
[334489732,1723163441697,-5732.40616766,0.00024399,2]
[334489737,1723163442884,-401.47892665,0.00024399,2]
[334489738,1723163442945,-1366.11490569,0.00024399,2]
[334489739,1723163442955,-494.0,0.000244,7]
[334489740,1723163442965,-2350.91928364,0.000244,2]
[334489741,1723163442975,-453.87216,0.000244,2]
[334489742,1723163442986,-150.0,0.00024469,2]
[334489743,1723163442996,-392.80945594,0.0002448,4]
[334489744,1723163443006,-180.0,0.00024484,2]
[334489745,1723163443016,-585.77,0.00024488,5]
[334489746,1723163443026,-500.0,0.00024488,5]
[334489747,1723163443035,-500.0,0.00024488,5]
[334489748,1723163443044,-500.0,0.00024488,5]
[334489749,1723163443054,-500.0,0.00024488,5]
[334489750,1723163443064,-500.0,0.00024488,5]
[334489751,1723163443073,-500.0,0.00024488,5]
[334489752,1723163443082,-500.0,0.00024488,5]
[334489753,1723163443091,-500.0,0.00024488,5]
[334489754,1723163443101,-706.57,0.00024488,5]
[334489755,1723163443111,-500.0,0.00024488,5]
[334489756,1723163443121,-275.18529425,0.00024488,5]
[334489757,1723163443134,-1884.94,0.00024488,5]
[334489758,1723163443143,-260.86408926,0.00024488,5]
[334489759,1723163443155,-239.13591074,0.00024488,5]
[334489760,1723163443165,-500.0,0.00024488,5]
[334489762,1723163443175,-500.0,0.00024488,5]
[334489764,1723163443184,-500.0,0.00024488,5]
[334489766,1723163443194,-655.86408926,0.00024488,5]
[334489772,1723163445950,-285.56665977,0.00024399,2]
[334489773,1723163445965,-608.35712949,0.00024399,2]
[334489774,1723163446065,-106.07621074,0.00024399,2]
[334489775,1723163446075,-287.91591074,0.00024488,5]
[334489776,1723163446094,-500.0,0.00024488,5]
[334489777,1723163446103,-1299.52,0.00024488,5]
[334489778,1723163446113,-1074.47,0.00024488,5]
[334489779,1723163446125,-500.0,0.00024488,5]
[334489780,1723163446141,-500.0,0.00024488,5]
[334489781,1723163446151,-788.17,0.00024488,5]
[334489782,1723163446161,-500.0,0.00024488,5]
[334489783,1723163446171,-1433.66,0.00024488,5]
[334489784,1723163446180,-719.87,0.00024488,5]
[334489785,1723163446190,-1590.07,0.00024488,5]
[334489786,1723163446200,-1162.84,0.00024488,5]
[334489787,1723163446211,-500.0,0.00024488,5]
[334489788,1723163446220,-823.86,0.00024488,5]
[334489789,1723163446232,-500.0,0.00024488,5]
[334489790,1723163446241,-756.46,0.00024488,5]
[334489791,1723163446251,-1512.94,0.00024488,5]
[334489792,1723163446260,-399.65139556,0.00024488,5]
[334489793,1723163446950,-100.34860444,0.00024488,5]
[334489794,1723163446960,-154.72,0.00024488,2]
[334489795,1723163446970,-785.61891188,0.00024489,4]
[334489796,1723163446979,-500.0,0.00024489,5]
[334489797,1723163446989,-500.0,0.00024489,5]
[334489798,1723163446999,-319.32821834,0.00024489,5]
[334489799,1723163447008,-500.0,0.00024489,5]
[334489800,1723163447018,-500.0,0.00024489,5]
[334489801,1723163447027,-500.0,0.00024489,5]
[334489802,1723163447037,-500.0,0.00024489,5]
[334489803,1723163447047,-500.0,0.00024489,5]
[334489804,1723163447056,-230.34843278,0.00024489,5]
[334489805,1723163447066,-706.57,0.00024489,5]
[334489806,1723163447076,-565.14,0.00024489,5]
[334489807,1723163447085,-500.0,0.00024489,5]
[334489808,1723163447095,-500.0,0.00024489,5]
[334489809,1723163447103,-1884.94,0.00024489,5]
[334489810,1723163447113,-1884.94,0.00024489,5]
[334489811,1723163447123,-572.15,0.00024489,5]
[334489812,1723163447136,-500.0,0.00024489,5]
[334489813,1723163447145,-500.0,0.00024489,5]
[334489814,1723163447155,-500.0,0.00024489,5]
[334489815,1723163447166,-500.0,0.00024489,5]
[334489816,1723163447175,-500.0,0.00024489,5]
[334489817,1723163447184,-500.0,0.00024489,5]
[334489818,1723163447194,-943.78,0.00024489,5]
[334489819,1723163447205,-943.78,0.00024489,5]
[334489820,1723163447214,-500.0,0.00024489,5]
[334489821,1723163447223,-221.72975454,0.00024489,5]
[334489822,1723163447232,-500.0,0.00024489,2]
[334489823,1723163447241,-500.0,0.00024489,2]
[334489824,1723163447251,-1299.52,0.00024489,5]
[334489825,1723163447261,-1299.52,0.00024489,5]
[334489826,1723163447270,-9336.82,0.00024489,5]
[334489827,1723163447279,-1074.47,0.00024489,5]
[334489828,1723163447288,-1074.47,0.00024489,5]
[334489829,1723163447297,-500.0,0.00024489,5]
[334489830,1723163447306,-500.0,0.00024489,5]
[334489831,1723163447315,-500.0,0.00024489,5]
[334489832,1723163447324,-500.0,0.00024489,5]
[334489833,1723163447333,-788.17,0.00024489,5]
[334489834,1723163447342,-788.17,0.00024489,5]
[334489835,1723163447351,-500.0,0.00024489,5]
[334489836,1723163447361,-500.0,0.00024489,5]
[334489837,1723163447370,-1433.66,0.00024489,5]
[334489838,1723163447379,-1433.66,0.00024489,5]
[334489839,1723163447388,-719.87,0.00024489,5]
[334489840,1723163447398,-719.87,0.00024489,5]
[334489841,1723163447407,-356.17,0.00024489,5]
[334489842,1723163447416,-1590.07,0.00024489,5]
[334489843,1723163447426,-1590.07,0.00024489,5]
[334489844,1723163447436,-1162.84,0.00024489,5]
[334489845,1723163447445,-1162.84,0.00024489,5]
[334489846,1723163447455,-25665.73911952,0.00024489,5]
[334489847,1723163447464,-500.0,0.00024489,5]
[334489848,1723163447474,-500.0,0.00024489,5]
[334489849,1723163447483,-660.56,0.00024489,5]
[334489850,1723163447493,-823.86,0.00024489,5]
[334489851,1723163447502,-823.86,0.00024489,5]
[334489852,1723163447511,-500.0,0.00024489,5]
[334489853,1723163447520,-292.85,0.00024489,5]
[334489854,1723163447530,-756.46,0.00024489,5]
[334489855,1723163447539,-756.46,0.00024489,5]
[334489856,1723163447549,-500.0,0.00024489,5]
[334489857,1723163447558,-1512.94,0.00024489,5]
[334489858,1723163447567,-500.0,0.00024489,5]
[334489859,1723163447577,-171.17,0.00024489,5]
[334489860,1723163447586,-500.0,0.00024489,5]
[334489861,1723163447596,-178.72,0.00024489,5]
[334489862,1723163447605,-48884.16424938,0.0002449,7]
[334489863,1723163447621,-5944.71244413,0.0002449,7]
[334489864,1723163447632,-9309.10477623,0.0002449,7]
[334489882,1723164262008,323.0,0.00022,60]
[334489903,1723164633187,-154.42,0.00013973,2]
[334489905,1723164633197,-197.58922122,0.00019298,2]
[334489907,1723164633210,-367.71679801,0.00019387,2]
[334489909,1723164633229,-180.02,0.00020758,2]
[334489911,1723164633238,-227.69229236,0.00022,2]
[334489913,1723164633248,-1222.70109988,0.00022,2]
[334489914,1723164633257,-11160.6605885,0.00022,2]
[334489915,1723164633269,-558.0,0.00022,2]
[334489918,1723164633300,-392.36702055,0.00022,2]
[334489920,1723164633312,-1536.69297289,0.00022,2]
[334489931,1723164633416,-974.17343412,0.00022,2]
[334489938,1723164633475,-2178.94584394,0.00022,2]
[334489940,1723164633487,-810.84,0.00022,2]
[334489942,1723164633500,-1381.75938072,0.00022,2]
[334489945,1723164633516,-460.59415606,0.00022,2]
[334490011,1723164638349,-197.5892212,0.00019978,2]
[334490012,1723164638359,-2634.25701494,0.00022,2]
[334490013,1723164638368,-537.40367405,0.00022,2]
[334490014,1723164638378,-790.28888999,0.00022,2]
[334490015,1723164638387,-155.0,0.00022,2]
[334490016,1723164638396,-572.89050464,0.00022,2]
[334490017,1723164638406,-3069.9855493,0.00022,2]
[334490018,1723164638415,-1732.12740772,0.00022,2]
[334490019,1723164638424,-340.85993505,0.00022,7]
[334490020,1723164638434,-1034.50268757,0.00022,2]
[334490021,1723164638443,-961.55291744,0.00022,2]
[334490022,1723164638454,-1237.049,0.00022,2]
[334490023,1723164638464,-655.0,0.000223,3]
[334490024,1723164638473,-499.99,0.000223,2]
[334490025,1723164638482,-1900.97,0.00022457,2]
[334490026,1723164638493,-250.0,0.00022474,2]
[334490027,1723164638506,-4383.1,0.000225,2]
[334490028,1723164638515,-1679.33,0.00022653,2]
[334490029,1723164638524,-250.0,0.00022661,2]
[334490030,1723164638535,-800.0,0.00022694,2]
[334490031,1723164638544,-8321.45,0.00022903,2]
[334490032,1723164638553,-150.0,0.00022904,2]
[334490033,1723164638563,-177.89,0.00022927,2]
[334490034,1723164638573,-200.0,0.00022927,2]
[334490035,1723164638583,-150.0,0.00022932,2]
[334490036,1723164638593,-2000.0,0.00022936,2]
[334490037,1723164638602,-200.0,0.00022998,2]
[334490038,1723164638612,-200.0,0.00023,2]
[334490039,1723164638622,-390.19,0.00023,2]
[334490040,1723164638631,-180.02,0.00023022,2]
[334490041,1723164638641,-169.11,0.00023216,2]
[334490042,1723164638650,-163.12,0.00023497,2]
[334490043,1723164638660,-420.82,0.00023534,2]
[334490044,1723164638670,-420.82,0.00023534,2]
[334490045,1723164638680,-419.29,0.00023534,2]
[334490046,1723164638689,-852.14,0.00023671,2]
[334490047,1723164638699,-303.1,0.00023671,2]
[334490048,1723164638713,-150.0,0.00023671,2]
[334490049,1723164638723,-150.0,0.00023671,2]
[334490050,1723164638732,-426.15,0.00023671,2]
[334490051,1723164638742,-150.0,0.00023671,2]
[334490052,1723164638751,-426.15,0.00023671,2]
[334490053,1723164638761,-425.91,0.00023671,2]
[334490054,1723164638770,-4187.34504776,0.0002438,15]
[334490055,1723164638780,-41122.6335,0.00024389,2]
[334490056,1723164638789,-437.0521,0.00024389,2]
[334490057,1723164638798,-1000.0,0.00024389,2]
[334490058,1723164638807,-343.1705514,0.0002439,2]
[334490059,1723164638816,-8148.8037,0.0002439,2]
[334490060,1723164638826,-1105.7059,0.0002439,2]
[334490061,1723164638835,-248.45978531,0.00024398,2]
[334490062,1723164638846,-248.45978531,0.00024399,2]
[334490063,1723164638855,-1000.0,0.00024399,2]
[334490064,1723164638864,-174.7785873,0.00024399,2]
[334490065,1723164638873,-289.51459622,0.00024399,2]
[334490066,1723164638882,-494.0,0.000244,7]
[334490067,1723164638892,-1583.0,0.0002445,2]
[334490068,1723164638901,-542.45,0.0002447,3]
[334490069,1723164638910,-3044.81705195,0.0002448,4]
[334490070,1723164638920,-154.64,0.0002448,2]
[334490071,1723164638929,-608.96341039,0.00024482,4]
[334490072,1723164638939,-1217.92682078,0.00024487,4]
[334490073,1723164638948,-500.0,0.00024487,5]
[334490074,1723164638961,-500.0,0.00024487,5]
[334490075,1723164638970,-2029.29,0.00024487,5]
[334490076,1723164638980,-500.0,0.00024487,5]
[334490077,1723164638989,-2336.04,0.00024487,5]
[334490078,1723164638998,-500.0,0.00024487,5]
[334490079,1723164639008,-560.3,0.00024487,5]
[334490080,1723164639017,-648.11,0.00024487,5]
[334490081,1723164639026,-1433.71,0.00024487,5]
[334490082,1723164639037,-1752.96,0.00024487,5]
[334490083,1723164639046,-818.18,0.00024487,5]
[334490084,1723164639056,-1522.59,0.00024487,5]
[334490085,1723164639067,-695.1,0.00024487,5]
[334490086,1723164639076,-3801.9,0.00024487,5]
[334490087,1723164639086,-2147.63,0.00024487,5]
[334490088,1723164639095,-1376.03,0.00024487,5]
[334490089,1723164639104,-2114.65,0.00024487,5]
[334490090,1723164639115,-279.31063946,0.00024487,5]
[334490091,1723164639136,-872.78448511,0.00024487,5]
[334490093,1723164640201,-1242.85487543,0.00024487,5]
[334490094,1723164640216,-122.16672132,0.00024487,5]
[334490102,1723164641100,-852.79327868,0.00024487,5]
[334490104,1723164641111,-1675.27996922,0.00024487,5]
[334490106,1723164641127,-604.32003078,0.00024487,5]
[334490108,1723164641137,-311.75191826,0.00024487,5]
[334490110,1723164641149,-188.24808174,0.00024487,5]
[334490112,1723164641160,-185.82668937,0.00024487,5]
[334490114,1723164641172,-314.17331063,0.00024487,5]
[334490116,1723164641182,-500.0,0.00024487,5]
[334490118,1723164641192,-500.0,0.00024487,5]
[334490120,1723164641203,-500.0,0.00024487,5]
[334490122,1723164641214,-500.0,0.00024487,5]
[334490124,1723164641223,-500.0,0.00024487,5]
[334490126,1723164641233,-500.0,0.00024487,5]
[334490128,1723164641243,-500.0,0.00024487,5]
[334490130,1723164641253,-153.938422,0.00024487,5]
[334490132,1723164641263,-4683.98578029,0.00024487,5]
[334490135,1723164641275,-668.33421971,0.00024487,5]
[334490137,1723164641284,-119.23652914,0.00024488,2]
[334490139,1723164641294,-1894.29153763,0.00024488,2]
[334490141,1723164641303,-500.0,0.00024488,5]
[334490143,1723164641313,-500.0,0.00024488,5]
[334490145,1723164641323,-151.0,0.00024488,7]
[334490147,1723164641332,-500.0,0.00024488,5]
[334490149,1723164641342,-3153.77131732,0.00024488,5]
[334490151,1723164641351,-158.699764,0.00024488,7]
[334490152,1723164641362,-158.699764,0.00024488,7]
[334490154,1723164641371,-633.03,0.00024488,5]
[334490156,1723164641381,-2029.29,0.00024488,5]
[334490158,1723164641390,-500.0,0.00024488,5]
[334490160,1723164641400,-2336.04,0.00024488,5]
[334490162,1723164641410,-500.0,0.00024488,5]
[334490164,1723164641419,-560.3,0.00024488,5]
[334490166,1723164641429,-648.11,0.00024488,5]
[334490168,1723164641438,-151.0,0.00024488,7]
[334490170,1723164641448,-1433.71,0.00024488,5]
[334490172,1723164641460,-1752.96,0.00024488,5]
[334490174,1723164641469,-135.00684142,0.00024488,5]
[334490176,1723164641482,-683.17315858,0.00024488,5]
[334490178,1723164641491,-945.19964523,0.00024488,5]
[334490181,1723164641507,-577.39035477,0.00024488,5]
[334490183,1723164641517,-383.87354857,0.00024488,5]
[334490211,1723164643053,-197.5892212,0.00020658,2]
[334490212,1723164643064,-89.2000868,0.00024488,5]
[334490213,1723164643115,-222.02636463,0.00024488,5]
[334490214,1723164643124,-942.97363537,0.00024488,5]
[334490215,1723164643230,-2858.92636463,0.00024488,5]
[334490216,1723164643240,-2147.63,0.00024488,5]
[334490217,1723164643249,-1376.03,0.00024488,5]
[334490218,1723164643259,-2114.65,0.00024488,5]
[334490219,1723164643268,-2394.95,0.00024488,5]
[334490220,1723164643278,-974.96,0.00024488,5]
[334490221,1723164643287,-2279.6,0.00024488,5]
[334490222,1723164643297,-500.0,0.00024488,5]
[334490223,1723164643306,-500.0,0.00024488,2]
[334490224,1723164643315,-167.66212886,0.00024488,2]
[334490225,1723164643325,-500.0,0.00024488,5]
[334490226,1723164643334,-500.0,0.00024488,5]
[334490227,1723164643343,-2331.82,0.00024488,5]
[334490229,1723164643352,-500.0,0.00024488,5]
[334490231,1723164643361,-500.0,0.00024488,5]
[334490232,1723164643371,-500.0,0.00024488,5]
[334490233,1723164643380,-500.0,0.00024488,5]
[334490234,1723164643390,-297.930686,0.00024488,7]
[334490235,1723164643399,-500.0,0.00024488,5]
[334490236,1723164643409,-51953.00980935,0.00024488,2]
[334490260,1723164643701,-248.45978531,0.00024399,2]
[334490262,1723164643713,-6050.44687863,0.00024488,2]
[334490264,1723164643722,-500.0,0.00024488,5]
[334490266,1723164643732,-915.56,0.00024488,5]
[334490268,1723164643741,-500.0,0.00024488,5]
[334490270,1723164643751,-500.0,0.00024488,5]
[334490272,1723164643761,-5352.32,0.00024488,5]
[334490274,1723164643771,-3044.81705195,0.00024488,4]
[334490276,1723164643780,-1217.92682078,0.00024489,4]
[334490278,1723164643789,-151.0,0.00024489,7]
[334490280,1723164643799,-414.38,0.00024489,5]
[334490282,1723164643808,-500.0,0.00024489,5]
[334490284,1723164643818,-151.0,0.00024489,7]
[334490286,1723164643827,-500.0,0.00024489,5]
[334490288,1723164643836,-151.0,0.00024489,7]
[334490290,1723164643846,-151.0,0.00024489,7]
[334490292,1723164643855,-500.0,0.00024489,5]
[334490294,1723164643864,-500.0,0.00024489,5]
[334490296,1723164643873,-151.0,0.00024489,7]
[334490298,1723164643882,-151.0,0.00024489,7]
[334490300,1723164643892,-151.0,0.00024489,7]
[334490301,1723164643901,-151.0,0.00024489,7]
[334490303,1723164643911,-151.0,0.00024489,7]
[334490305,1723164643920,-465.94,0.00024489,5]
[334490307,1723164643929,-181.915186,0.00024489,7]
[334490309,1723164643939,-500.0,0.00024489,5]
[334490311,1723164643948,-158.699764,0.00024489,7]
[334490313,1723164643959,-158.699764,0.00024489,7]
[334490314,1723164643968,-158.699764,0.00024489,7]
[334490315,1723164643978,-158.699764,0.00024489,7]
[334490316,1723164643988,-633.03,0.00024489,5]
[334490317,1723164643998,-158.699764,0.00024489,7]
[334490318,1723164644008,-158.699764,0.00024489,7]
[334490319,1723164644018,-1090.16,0.00024489,5]
[334490320,1723164644028,-1386.87,0.00024489,5]
[334490321,1723164644037,-940.89,0.00024489,5]
[334490322,1723164644047,-309.376601,0.00024489,5]
[334490323,1723164644202,-157.654103,0.00024489,5]
[334490324,1723164644214,-155.032913,0.00024489,5]
[334490325,1723164644223,-500.23289875,0.00024489,5]
[334490326,1723164644233,-500.0,0.00024489,5]
[334490327,1723164644242,-203.58902,0.00024489,5]
[334490328,1723164644251,-500.0,0.00024489,5]
[334490329,1723164644260,-159.807086,0.00024489,5]
[334490330,1723164644270,-588.03,0.00024489,5]
[334490331,1723164644279,-500.0,0.00024489,5]
[334490332,1723164644289,-500.0,0.00024489,5]
[334490333,1723164644298,-2029.29,0.00024489,5]
[334490334,1723164644307,-500.0,0.00024489,5]
[334490335,1723164644317,-2336.04,0.00024489,5]
[334490336,1723164644326,-501.49417597,0.00024489,5]
[334490337,1723164644336,-500.0,0.00024489,5]
[334490338,1723164644346,-500.0,0.00024489,5]
[334490339,1723164644356,-500.0,0.00024489,5]
[334490340,1723164644365,-541.59,0.00024489,5]
[334490341,1723164644374,-500.0,0.00024489,5]
[334490342,1723164644384,-500.0,0.00024489,5]
[334490343,1723164644393,-560.3,0.00024489,5]
[334490344,1723164644403,-648.11,0.00024489,5]
[334490345,1723164644412,-151.0,0.00024489,7]
[334490346,1723164644421,-151.0,0.00024489,7]
[334490347,1723164644430,-151.0,0.00024489,7]
[334490348,1723164644440,-1433.71,0.00024489,5]
[334490349,1723164644449,-1752.96,0.00024489,5]
[334490350,1723164644459,-818.18,0.00024489,5]
[334490351,1723164644468,-695.1,0.00024489,5]
[334490352,1723164644478,-3801.9,0.00024489,5]
[334490353,1723164644487,-2147.63,0.00024489,5]
[334490354,1723164644497,-1376.03,0.00024489,5]
[334490355,1723164644508,-2114.65,0.00024489,5]
[334490356,1723164644519,-2394.95,0.00024489,5]
[334490357,1723164644529,-974.96,0.00024489,5]
[334490358,1723164644539,-2279.6,0.00024489,5]
[334490359,1723164644548,-977.393583,0.00024489,7]
[334490360,1723164644559,-977.393583,0.00024489,7]
[334490361,1723164644569,-2069.1375,0.00024489,2]
[334490362,1723164644580,-977.393583,0.00024489,7]
[334490363,1723164644592,-977.393583,0.00024489,7]